fUSD/lending_fUSD_20241202
["ID","MTS","AMOUNT","RATE_DAILY","PERIOD"]
[343998979,1733173889557,-500.0,0.00025,120]
[343998980,1733173889567,-500.0,0.00025,120]
[343998981,1733173889577,-500.0,0.00025,120]
[343998982,1733173889587,-500.0,0.00025,120]
[343998983,1733173889603,-1015.27,0.00025,120]
[343998984,1733173889613,-646.11,0.00025,120]
[343998985,1733173889624,-2683.08,0.00025,120]
[343998986,1733173889634,-500.0,0.00025,120]
[343998987,1733173889646,-500.0,0.00025,120]
[343998988,1733173889656,-500.0,0.00025,120]
[343998989,1733173889666,-708.26,0.00025,120]
[343998990,1733173889677,-500.0,0.00025,120]
[343998991,1733173889688,-792.71,0.00025,120]
[343998992,1733173889699,-500.0,0.00025,120]
[343998993,1733173889709,-1021.8,0.00025,120]
[343998994,1733173889718,-2179.88,0.00025,120]
[343998995,1733173889728,-351.359347,0.00025,120]
[343998996,1733173889738,-500.0,0.00025,120]
[343998997,1733173889747,-4423.26,0.00025,120]
[343998998,1733173889757,-3555.97,0.00025,120]
[343998999,1733173889766,-500.0,0.00025,120]
[343999000,1733173889777,-500.0,0.00025,30]
[343999001,1733173889787,-500.0,0.00025,120]
[343999002,1733173889797,-500.0,0.00025,120]
[343999003,1733173889807,-500.0,0.00025,120]
[343999004,1733173889817,-607.67822155,0.00025,120]
[343999005,1733173889827,-2975.31,0.00025,120]
[343999006,1733173889836,-253.184392,0.00025,120]
[343999007,1733173889955,-500.0,0.00025,120]
[343999008,1733173889964,-350.0,0.00025,2]
[343999009,1733173889974,-510.01,0.00025,120]
[343999010,1733173889984,-500.0,0.00025,120]
[343999011,1733173889995,-500.0,0.00025,120]
[343999012,1733173890005,-1818.41,0.00025,120]
[343999013,1733173890014,-585.94,0.00025,120]
[343999014,1733173890024,-2019.01,0.00025,120]
[343999015,1733173890034,-700.0,0.00025,2]
[343999016,1733173890045,-500.0,0.00025,120]
[343999017,1733173890054,-500.0,0.00025,120]
[343999018,1733173890063,-3043.144528,0.00025,120]
[343999019,1733173890073,-500.0,0.00025,120]
[343999020,1733173890083,-309.98,0.00025,2]
[343999021,1733173890094,-1890.45,0.00025,120]
[343999022,1733173890103,-500.0,0.00025,120]
[343999023,1733173890113,-309.98,0.00025,2]
[343999024,1733173890122,-1202.33,0.00025,30]
[343999025,1733173890132,-1375.9,0.00025,120]
[343999026,1733173890142,-500.0,0.00025,120]
[343999027,1733173890151,-1113.59,0.00025,2]
[343999028,1733173890160,-500.0,0.00025,2]
[343999029,1733173890169,-621.77,0.00025,120]
[343999030,1733173890179,-856.73,0.00025,120]
[343999031,1733173890188,-554.12,0.00025,120]
[343999032,1733173890198,-500.0,0.00025,120]
[343999033,1733173890207,-500.75,0.00025,120]
[343999034,1733173890217,-508.68,0.00025,7]
[343999035,1733173890226,-500.0,0.00025,120]
[343999036,1733173890236,-1506.84,0.00025,120]
[343999037,1733173890245,-769.9,0.00025,120]
[343999038,1733173890255,-956.18,0.00025,120]
[343999039,1733173890264,-500.0,0.00025,120]
[343999040,1733173890273,-500.0,0.00025,120]
[343999041,1733173890282,-2888.46,0.00025,120]
[343999042,1733173890291,-2354.3,0.00025,120]
[343999043,1733173890301,-633.84,0.00025,120]
[343999044,1733173890311,-500.0,0.00025,120]
[343999045,1733173890320,-747.04,0.00025,120]
[343999046,1733173890330,-500.0,0.00025,120]
[343999047,1733173890339,-500.0,0.00025,120]
[343999048,1733173890351,-500.0,0.00025,120]
[343999049,1733173890360,-500.0,0.00025,120]
[343999050,1733173890370,-500.0,0.00025,120]
[343999051,1733173890379,-500.0,0.00025,120]
[343999052,1733173890388,-842.49,0.00025,120]
[343999053,1733173890398,-727.37,0.00025,120]
[343999054,1733173890407,-500.0,0.00025,120]
[343999055,1733173890417,-500.0,0.00025,120]
[343999056,1733173890426,-2165.87,0.00025,120]
[343999057,1733173890435,-500.0,0.00025,120]
[343999058,1733173890445,-1539.17,0.00025,120]
[343999059,1733173890454,-153.977881,0.00025,7]
[343999060,1733173890463,-500.0,0.00025,120]
[343999061,1733173890473,-500.0,0.00025,120]
[343999062,1733173890483,-832.81,0.00025,120]
[343999063,1733173890492,-563.35,0.00025,120]
[343999064,1733173890501,-1640.68,0.00025,120]
[343999065,1733173890511,-3929.33,0.00025,120]
[343999066,1733173890521,-3775.69,0.00025,120]
[343999067,1733173890530,-267.09801662,0.00025,120]
[343999068,1733173890540,-2325.58,0.00025,120]
[343999069,1733173890550,-1040.53,0.00025,120]
[343999070,1733173890560,-656.49,0.00025,120]
[343999071,1733173890570,-500.0,0.00025,120]
[343999072,1733173890579,-500.0,0.00025,120]
[343999073,1733173890589,-153.058923,0.00025,7]
[343999074,1733173890602,-500.0,0.00025,120]
[343999075,1733173890612,-1169.92,0.00025,120]
[343999076,1733173890622,-500.0,0.00025,120]
[343999077,1733173890632,-2693.8,0.00025,120]
[343999078,1733173890642,-521.23,0.00025,120]
[343999079,1733173890652,-500.0,0.00025,120]
[343999080,1733173890663,-500.0,0.00025,120]
[343999081,1733173890673,-877.98,0.00025,120]
[343999082,1733173890683,-500.0,0.00025,120]
[343999083,1733173890694,-594.41,0.00025,120]
[343999084,1733173890704,-500.0,0.00025,120]
[343999085,1733173890714,-933.47,0.00025,120]
[343999086,1733173890724,-578.44,0.00025,120]
[343999087,1733173890734,-511.3,0.00025,120]
[343999088,1733173890744,-4364.55,0.00025,120]
[343999089,1733173890754,-693.75,0.00025,120]
[343999090,1733173890764,-767.44,0.00025,120]
[343999091,1733173890775,-1250.0,0.00025,120]
[343999092,1733173890786,-500.0,0.00025,120]
[343999093,1733173890795,-500.0,0.00025,120]
[343999094,1733173890806,-500.0,0.00025,120]
[343999095,1733173890816,-1277.39,0.00025,120]
[343999096,1733173890826,-500.0,0.00025,120]
[343999097,1733173890835,-500.0,0.00025,120]
[343999098,1733173890849,-500.0,0.00025,120]
[343999099,1733173890861,-500.0,0.00025,120]
[343999100,1733173890872,-500.0,0.00025,120]
[343999101,1733173890883,-732.62,0.00025,120]
[343999102,1733173890893,-500.0,0.00025,120]
[343999103,1733173890903,-579.78386315,0.00025,120]
[343999104,1733173890913,-500.0,0.00025,120]
[343999105,1733173890923,-500.0,0.00025,120]
[343999106,1733173890933,-500.0,0.00025,120]
[343999107,1733173890945,-500.0,0.00025,120]
[343999108,1733173890956,-1335.88,0.00025,120]
[343999109,1733173890967,-500.0,0.00025,120]
[343999110,1733173890977,-151.0,0.00025,7]
[343999111,1733173890986,-500.0,0.00025,120]
[343999112,1733173890996,-767.44,0.00025,120]
[343999113,1733173891006,-1758.65,0.00025,120]
[343999114,1733173891015,-525.27126497,0.00025,120]
[343999115,1733173891026,-500.0,0.00025,120]
[343999116,1733173891036,-500.0,0.00025,120]
[343999117,1733173891045,-1300.83,0.00025,120]
[343999118,1733173891056,-581.61,0.00025,120]
[343999119,1733173891066,-550.67,0.00025,120]
[343999120,1733173891075,-367.256123,0.00025,7]
[343999121,1733173891085,-500.0,0.00025,120]
[343999122,1733173891100,-500.0,0.00025,120]
[343999123,1733173891110,-500.0,0.00025,120]
[343999124,1733173891120,-1090.84,0.00025,120]
[343999125,1733173891131,-598.46,0.00025,120]
[343999126,1733173891140,-500.0,0.00025,120]
[343999127,1733173891150,-500.0,0.00025,120]
[343999128,1733173891165,-367.256123,0.00025,7]
[343999129,1733173891175,-500.0,0.00025,120]
[343999130,1733173891186,-500.0,0.00025,120]
[343999131,1733173891195,-500.0,0.00025,120]
[343999132,1733173891205,-3664.64,0.00025,120]
[343999133,1733173891215,-500.0,0.00025,120]
[343999134,1733173891225,-2456.46,0.00025,120]
[343999135,1733173891235,-2060.84,0.00025,120]
[343999136,1733173891245,-540.6,0.00025,120]
[343999137,1733173891255,-616.08,0.00025,120]
[343999138,1733173891265,-670.07,0.00025,120]
[343999139,1733173891275,-500.0,0.00025,120]
[343999140,1733173891285,-500.0,0.00025,120]
[343999141,1733173891295,-599.69,0.00025,120]
[343999142,1733173891305,-500.0,0.00025,120]
[343999143,1733173891315,-500.0,0.00025,120]
[343999144,1733173891325,-866.14,0.00025,120]
[343999145,1733173891335,-500.0,0.00025,120]
[343999146,1733173891348,-500.0,0.00025,120]
[343999147,1733173891358,-500.0,0.00025,120]
[343999148,1733173891367,-500.0,0.00025,120]
[343999149,1733173891377,-3273.24,0.00025,2]
[343999150,1733173891387,-1723.31,0.00025,120]
[343999151,1733173891397,-1982.76,0.00025,120]
[343999152,1733173891407,-1929.35,0.00025,120]
[343999153,1733173891417,-1285.36,0.00025,120]
[343999154,1733173891427,-982.1,0.00025,120]
[343999155,1733173891437,-500.0,0.00025,120]
[343999156,1733173891447,-500.0,0.00025,120]
[343999157,1733173891456,-500.0,0.00025,120]
[343999158,1733173891466,-500.0,0.00025,120]
[343999159,1733173891475,-500.0,0.00025,120]
[343999160,1733173891485,-581.16,0.00025,120]
[343999161,1733173891495,-500.0,0.00025,120]
[343999162,1733173891504,-500.0,0.00025,120]
[343999163,1733173891513,-500.0,0.00025,120]
[343999164,1733173891523,-500.0,0.00025,120]
[343999165,1733173891532,-500.0,0.00025,2]
[343999166,1733173891542,-2155.86,0.00025,120]
[343999167,1733173891552,-3326.49,0.00025,120]
[343999168,1733173891562,-831.41,0.00025,120]
[343999169,1733173891572,-500.0,0.00025,120]
[343999170,1733173891582,-500.0,0.00025,120]
[343999171,1733173891594,-500.0,0.00025,120]
[343999172,1733173891606,-500.0,0.00025,120]
[343999173,1733173891616,-1416.85,0.00025,120]
[343999174,1733173891627,-677.35,0.00025,120]
[343999175,1733173891637,-563.27081004,0.00025,120]
[343999176,1733173891647,-1576.75,0.00025,120]
[343999177,1733173891657,-500.0,0.00025,120]
[343999178,1733173891667,-2722.82,0.00025,120]
[343999179,1733173891677,-587.09,0.00025,120]
[343999180,1733173891687,-500.0,0.00025,120]
[343999181,1733173891698,-500.0,0.00025,120]
[343999182,1733173891708,-500.0,0.00025,120]
[343999183,1733173891719,-500.71,0.00025,120]
[343999184,1733173891729,-500.0,0.00025,120]
[343999185,1733173891740,-500.0,0.00025,120]
[343999186,1733173891750,-1521.0,0.00025,120]
[343999187,1733173891760,-2597.23,0.00025,120]
[343999188,1733173891770,-500.0,0.00025,120]
[343999189,1733173891780,-500.0,0.00025,120]
[343999190,1733173891790,-500.0,0.00025,120]
[343999191,1733173891800,-500.0,0.00025,120]
[343999192,1733173891811,-1938.849593,0.00025,2]
[343999193,1733173891821,-1006.36,0.00025,2]
[343999194,1733173891831,-759.62,0.00025,120]
[343999195,1733173891841,-1522.19,0.00025,120]
[343999196,1733173891859,-500.0,0.00025,120]
[343999197,1733173891869,-500.0,0.00025,120]
[343999198,1733173891880,-1099.84,0.00025,120]
[343999199,1733173891891,-1488.94,0.00025,120]
[343999200,1733173891901,-1103.63,0.00025,120]
[343999201,1733173891911,-941.95,0.00025,120]
[343999202,1733173891921,-500.0,0.00025,30]
[343999203,1733173891931,-500.0,0.00025,120]
[343999204,1733173891942,-500.0,0.00025,120]
[343999205,1733173891953,-793.73,0.00025,120]
[343999206,1733173891964,-500.0,0.00025,120]
[343999207,1733173891974,-500.0,0.00025,120]
[343999208,1733173891984,-3003.5,0.00025,120]
[343999209,1733173891994,-500.0,0.00025,120]
[343999210,1733173892004,-795.59,0.00025,120]
[343999211,1733173892014,-1470.28,0.00025,120]
[343999212,1733173892024,-1568.22,0.00025,120]
[343999213,1733173892034,-500.0,0.00025,120]
[343999214,1733173892045,-500.0,0.00025,120]
[343999215,1733173892055,-500.0,0.00025,120]
[343999216,1733173892065,-500.0,0.00025,120]
[343999217,1733173892075,-756.78,0.00025,120]
[343999218,1733173892086,-1518.06,0.00025,120]
[343999219,1733173892100,-500.0,0.00025,120]
[343999220,1733173892110,-500.0,0.00025,120]
[343999221,1733173892121,-500.0,0.00025,120]
[343999222,1733173892133,-500.0,0.00025,120]
[343999223,1733173892143,-3961.04,0.00025,120]
[343999224,1733173892154,-692.9,0.00025,120]
[343999225,1733173892164,-620.99,0.00025,120]
[343999226,1733173892174,-1582.96,0.00025,120]
[343999227,1733173892185,-500.0,0.00025,120]
[343999228,1733173892196,-500.0,0.00025,120]
[343999229,1733173892206,-2303.53,0.00025,120]
[343999230,1733173892217,-952.26,0.00025,120]
[343999231,1733173892228,-500.0,0.00025,120]
[343999232,1733173892238,-500.0,0.00025,120]
[343999233,1733173892249,-500.0,0.00025,120]
[343999234,1733173892260,-500.0,0.00025,120]
[343999235,1733173892270,-500.0,0.00025,120]
[343999236,1733173892280,-500.0,0.00025,120]
[343999237,1733173892290,-3567.76,0.00025,120]
[343999238,1733173892300,-500.0,0.00025,120]
[343999239,1733173892311,-500.0,0.00025,120]
[343999240,1733173892322,-985.5,0.00025,120]
[343999241,1733173892333,-2786.25,0.00025,120]
[343999242,1733173892346,-1117.27,0.00025,120]
[343999243,1733173892357,-769.83,0.00025,120]
[343999244,1733173892367,-2500.96,0.00025,120]
[343999245,1733173892377,-500.0,0.00025,120]
[343999246,1733173892387,-1310.98,0.00025,120]
[343999247,1733173892398,-510.57453379,0.00025,120]
[343999248,1733173892409,-2955.78,0.00025,120]
[343999249,1733173892419,-3527.89,0.00025,120]
[343999250,1733173892429,-645.29,0.00025,120]
[343999251,1733173892439,-500.0,0.00025,120]
[343999252,1733173892449,-500.0,0.00025,120]
[343999253,1733173892459,-3142.76,0.00025,120]
[343999254,1733173892468,-826.36,0.00025,120]
[343999255,1733173892478,-500.0,0.00025,120]
[343999256,1733173892489,-500.0,0.00025,120]
[343999257,1733173892500,-646.77,0.00025,120]
[343999258,1733173892510,-500.0,0.00025,120]
[343999259,1733173892521,-1874.04,0.00025,120]
[343999260,1733173892531,-1897.41,0.00025,120]
[343999261,1733173892542,-500.0,0.00025,120]
[343999262,1733173892552,-500.0,0.00025,120]
[343999263,1733173892562,-500.0,0.00025,120]
[343999264,1733173892572,-500.0,0.00025,120]
[343999265,1733173892583,-500.0,0.00025,120]
[343999266,1733173892596,-500.0,0.00025,120]
[343999267,1733173892606,-2062.35,0.00025,120]
[343999268,1733173892617,-500.0,0.00025,120]
[343999269,1733173892627,-500.0,0.00025,120]
[343999270,1733173892637,-500.0,0.00025,120]
[343999271,1733173892647,-500.0,0.00025,120]
[343999272,1733173892657,-500.0,0.00025,120]
[343999273,1733173892667,-500.0,0.00025,120]
[343999274,1733173892677,-508.68,0.00025,120]
[343999275,1733173892687,-500.0,0.00025,120]
[343999276,1733173892696,-500.0,0.00025,120]
[343999277,1733173892707,-500.0,0.00025,120]
[343999278,1733173892717,-500.0,0.00025,120]
[343999279,1733173892728,-5513.83,0.00025,120]
[343999280,1733173892738,-500.0,0.00025,120]
[343999281,1733173892750,-686.33,0.00025,120]
[343999282,1733173892761,-467.02444719,0.00025,120]
[343999283,1733173892771,-500.0,0.00025,120]
[343999284,1733173892782,-1378.33,0.00025,120]
[343999285,1733173892793,-576.77,0.00025,120]
[343999286,1733173892804,-500.0,0.00025,120]
[343999287,1733173892814,-2322.88,0.00025,120]
[343999288,1733173892824,-590.19,0.00025,120]
[343999289,1733173892835,-500.0,0.00025,120]
[343999290,1733173892846,-500.0,0.00025,120]
[343999291,1733173892857,-500.0,0.00025,120]
[343999292,1733173892867,-1307.83,0.00025,120]
[343999293,1733173892881,-3036.62,0.00025,120]
[343999294,1733173892893,-424.6486392,0.00025,120]
[343999295,1733173892903,-504.1,0.00025,120]
[343999296,1733173892915,-1219.37,0.00025,120]
[343999297,1733173892925,-2322.91,0.00025,120]
[343999298,1733173892936,-700.0,0.00025,120]
[343999299,1733173892946,-505.80662676,0.00025,120]
[343999300,1733173892957,-500.0,0.00025,120]
[343999301,1733173892967,-500.0,0.00025,120]
[343999302,1733173892978,-574.8,0.00025,120]
[343999303,1733173892988,-765.07,0.00025,120]
[343999304,1733173892999,-500.0,0.00025,120]
[343999305,1733173893009,-1406.45,0.00025,120]
[343999306,1733173893020,-500.0,0.00025,120]
[343999307,1733173893032,-2145.56,0.00025,120]
[343999308,1733173893042,-889.47,0.00025,120]
[343999309,1733173893053,-528.84,0.00025,120]
[343999310,1733173893064,-2786.57,0.00025,120]
[343999311,1733173893073,-500.0,0.00025,120]
[343999312,1733173893084,-499.599411,0.00025,7]
[343999313,1733173893096,-500.0,0.00025,120]
[343999314,1733173893107,-747.84,0.00025,120]
[343999315,1733173893118,-500.0,0.00025,120]
[343999316,1733173893128,-539.36,0.00025,120]
[343999317,1733173893138,-713.78,0.00025,120]
[343999318,1733173893149,-910.79,0.00025,120]
[343999319,1733173893159,-499.599411,0.00025,7]
[343999320,1733173893170,-500.0,0.00025,120]
[343999321,1733173893180,-1748.7,0.00025,120]
[343999322,1733173893191,-500.0,0.00025,120]
[343999323,1733173893201,-2625.28,0.00025,120]
[343999324,1733173893211,-1044.97,0.00025,120]
[343999325,1733173893221,-500.0,0.00025,120]
[343999326,1733173893232,-500.0,0.00025,120]
[343999327,1733173893243,-2404.56,0.00025,120]
[343999328,1733173893254,-500.0,0.00025,120]
[343999329,1733173893264,-500.0,0.00025,120]
[343999330,1733173893274,-764.9,0.00025,120]
[343999331,1733173893284,-2402.34,0.00025,120]
[343999332,1733173893295,-294.0073564,0.00025,120]
[343999333,1733173893305,-4506.5,0.00025,120]
[343999334,1733173893316,-500.0,0.00025,120]
[343999335,1733173893326,-804.87,0.00025,120]
[343999336,1733173893337,-500.0,0.00025,120]
[343999337,1733173893351,-170.43109178,0.00025,120]
[343999338,1733173893362,-500.0,0.00025,120]
[343999339,1733173893373,-4724.77,0.00025,120]
[343999340,1733173893384,-2790.86,0.00025,120]
[343999341,1733173893395,-500.0,0.00025,120]
[343999342,1733173893406,-500.0,0.00025,120]
[343999343,1733173893416,-1988.47,0.00025,120]
[343999344,1733173893427,-500.0,0.00025,120]
[343999345,1733173893438,-500.0,0.00025,120]
[343999346,1733173893449,-629.94,0.00025,120]
[343999347,1733173893459,-1820.12,0.00025,120]
[343999348,1733173893470,-500.0,0.00025,120]
[343999349,1733173893480,-2284.09,0.00025,120]
[343999350,1733173893491,-515.3,0.00025,120]
[343999351,1733173893503,-500.0,0.00025,120]
[343999352,1733173893515,-500.0,0.00025,120]
[343999353,1733173893526,-500.0,0.00025,120]
[343999354,1733173893537,-500.0,0.00025,120]
[343999355,1733173893548,-500.0,0.00025,120]
[343999356,1733173893559,-500.0,0.00025,120]
[343999357,1733173893570,-3268.23,0.00025,120]
[343999358,1733173893581,-500.0,0.00025,120]
[343999359,1733173893591,-2019.3,0.00025,120]
[343999360,1733173893605,-500.0,0.00025,120]
[343999361,1733173893616,-500.0,0.00025,120]
[343999362,1733173893627,-500.0,0.00025,120]
[343999363,1733173893638,-500.0,0.00025,120]
[343999364,1733173893649,-500.0,0.00025,120]
[343999365,1733173893660,-500.0,0.00025,120]
[343999366,1733173893671,-500.0,0.00025,120]
[343999367,1733173893682,-500.0,0.00025,120]
[343999368,1733173893694,-483.7054886,0.00025,120]
[343999369,1733173893705,-1556.41,0.00025,120]
[343999370,1733173893716,-1202.193267,0.00025,7]
[343999371,1733173893728,-500.0,0.00025,120]
[343999372,1733173893738,-500.0,0.00025,120]
[343999373,1733173893751,-500.0,0.00025,120]
[343999374,1733173893761,-1725.27,0.00025,120]
[343999375,1733173893772,-559.3,0.00025,120]
[343999376,1733173893783,-1187.99,0.00025,120]
[343999377,1733173893793,-500.0,0.00025,120]
[343999378,1733173893804,-500.0,0.00025,120]
[343999379,1733173893816,-308.58312923,0.00025,120]
[343999380,1733173893826,-1202.193267,0.00025,7]
[343999381,1733173893837,-500.0,0.00025,120]
[343999382,1733173893850,-1673.07,0.00025,120]
[343999383,1733173893860,-2560.36,0.00025,120]
[343999384,1733173893872,-500.0,0.00025,120]
[343999385,1733173893884,-500.0,0.00025,120]
[343999386,1733173893894,-4333.39,0.00025,120]
[343999387,1733173893904,-500.0,0.00025,120]
[343999388,1733173893915,-2007.52,0.00025,120]
[343999389,1733173893925,-954.02,0.00025,120]
[343999390,1733173893935,-570.79,0.00025,120]
[343999391,1733173893946,-500.0,0.00025,120]
[343999392,1733173893957,-2670.6,0.00025,120]
[343999393,1733173893968,-500.0,0.00025,120]
[343999394,1733173893978,-500.0,0.00025,120]
[343999395,1733173893989,-1650.86,0.00025,120]
[343999396,1733173894001,-500.0,0.00025,120]
[343999397,1733173894011,-1074.772599,0.00025,7]
[343999398,1733173894022,-500.0,0.00025,120]
[343999399,1733173894033,-500.0,0.00025,120]
[343999400,1733173894043,-500.0,0.00025,120]
[343999401,1733173894054,-500.0,0.00025,120]
[343999402,1733173894064,-842.22,0.00025,120]
[343999403,1733173894075,-395.87945216,0.00025,120]
[343999404,1733173894085,-3792.72,0.00025,120]
[343999405,1733173894098,-500.0,0.00025,120]
[343999406,1733173894110,-558.26,0.00025,120]
[343999407,1733173894120,-500.0,0.00025,120]
[343999408,1733173894131,-2070.35,0.00025,120]
[343999409,1733173894141,-1074.772599,0.00025,7]
[343999410,1733173894152,-665.774761,0.00025,7]
[343999411,1733173894162,-500.0,0.00025,120]
[343999412,1733173894173,-1209.35,0.00025,120]
[343999413,1733173894184,-500.0,0.00025,120]
[343999414,1733173894195,-4199.71,0.00025,120]
[343999415,1733173894206,-1965.44,0.00025,120]
[343999416,1733173894217,-3000.0,0.00025,2]
[343999417,1733173894227,-1748.88,0.00025,120]
[343999418,1733173894238,-500.0,0.00025,120]
[343999419,1733173894515,-500.0,0.00025,120]
[343999420,1733173894526,-300.0,0.00025,120]
[343999421,1733173894536,-665.774761,0.00025,7]
[343999422,1733173894546,-500.0,0.00025,120]
[343999423,1733173894557,-1935.91,0.00025,120]
[343999424,1733173894567,-1665.25,0.00025,120]
[343999425,1733173894577,-1007.33,0.00025,120]
[343999426,1733173894587,-542.68,0.00025,120]
[343999427,1733173894598,-500.0,0.00025,120]
[343999428,1733173894608,-500.0,0.00025,120]
[343999429,1733173894619,-500.0,0.00025,120]
[343999430,1733173894630,-401.51,0.00025,7]
[343999431,1733173894641,-500.0,0.00025,120]
[343999432,1733173894651,-1427.39,0.00025,120]
[343999433,1733173894662,-500.0,0.00025,120]
[343999434,1733173894672,-1126.46,0.00025,120]
[343999435,1733173894683,-500.0,0.00025,120]
[343999436,1733173894693,-722.31,0.00025,120]
[343999437,1733173894703,-1637.39,0.00025,120]
[343999438,1733173894713,-500.0,0.00025,120]
[343999439,1733173894723,-1911.33,0.00025,120]
[343999440,1733173894733,-508.84,0.00025,120]
[343999441,1733173894743,-2058.37,0.00025,120]
[343999442,1733173894753,-500.0,0.00025,120]
[343999443,1733173894763,-2347.66,0.00025,120]
[343999444,1733173894773,-1104.4,0.00025,120]
[343999445,1733173894783,-2182.5,0.00025,120]
[343999446,1733173894793,-1036.91,0.00025,120]
[343999447,1733173894803,-500.0,0.00025,120]
[343999448,1733173894812,-976.027073,0.00025,7]
[343999449,1733173894822,-500.0,0.00025,120]
[343999450,1733173894832,-2342.53,0.00025,120]
[343999451,1733173894841,-500.0,0.00025,120]
[343999452,1733173894856,-500.0,0.00025,120]
[343999453,1733173894866,-711.18,0.00025,120]
[343999454,1733173894876,-606.98,0.00025,120]
[343999455,1733173894886,-663.22,0.00025,120]
[343999456,1733173894897,-976.027073,0.00025,7]
[343999457,1733173894907,-500.0,0.00025,120]
[343999458,1733173894917,-983.38,0.00025,120]
[343999459,1733173894926,-500.0,0.00025,120]
[343999460,1733173894936,-3648.98,0.00025,120]
[343999461,1733173894948,-500.0,0.00025,120]
[343999462,1733173894958,-500.0,0.00025,120]
[343999463,1733173894968,-500.0,0.00025,120]
[343999464,1733173894977,-847.93,0.00025,120]
[343999465,1733173894987,-500.0,0.00025,120]
[343999466,1733173894997,-500.0,0.00025,120]
[343999467,1733173895007,-500.0,0.00025,120]
[343999468,1733173895018,-633.7,0.00025,120]
[343999469,1733173895028,-500.0,0.00025,120]
[343999470,1733173895038,-500.0,0.00025,120]
[343999471,1733173895048,-500.0,0.00025,120]
[343999472,1733173895058,-1007.6,0.00025,120]
[343999473,1733173895068,-6580.92,0.00025,120]
[343999474,1733173895079,-500.0,0.00025,120]
[343999475,1733173895088,-4065.82,0.00025,120]
[343999476,1733173895104,-1847.62,0.00025,120]
[343999477,1733173895114,-500.0,0.00025,120]
[343999478,1733173895124,-2617.71,0.00025,120]